Workbook

Sheet Transaction_File
D1: =IF(SUM(A4:A1503)>0,"Transaction Validation Error","") ->  | BN1: BGL
BN2: SF360
A3: Validation | B3: Transaction_Type | C3: Entity_Code | D3: Transaction_Date | E3: Amount | F3: Currency | G3: Description | H3: Bsb | I3: Bank_Account_No | J3: Security_Type | K3: Security_Code | L3: Quantity | M3: Brokerage | N3: Gst_Amount | O3: Gst_Rate_Detail | P3: Settlement_Date | Q3: Contract_Date | R3: Dividends_Franked | S3: Dividends_Unfranked | T3: Franking_Credits | U3: Interest | V3: Tfnamounts_Withheld | W3: Assessable_Foreign_Source_Income | X3: Australian_Franking_Credits_From_New_Zealand_Company | Y3: Capital_Gainscgtconcessional_Amount | Z3: Capital_Gains_Indexation_Method | AA3: Capital_Gains_Indexation_Method_Non_Cash | AB3: Capital_Gains_Other_Method | AC3: Capital_Gains_Other_Method_Non_Cash | AD3: Capital_Losses_Non_Cash | AE3: Discounted_Capital_Gain_Before_Discount | AF3: Discounted_Capital_Gain_Before_Discount_Non_Cash | AG3: Foreign_Capital_Gains_Indexation_Method_Tax_Paid | AH3: Foreign_Capital_Gains_Indexation_Method | AI3: Foreign_Capital_Gains_Other_Method_Tax_Paid | AJ3: Foreign_Capital_Gains_Other_Method | AK3: Foreign_Discounted_Capital_Gains_Before_Discount | AL3: Foreign_Discounted_Capital_Gains_Before_Discount_Tax_Paid | AM3: Foreign_Income_Tax_Paid_Offset_Credits | AN3: Less_Other_Allowable_Trust_Deductions | AO3: Licdeduction | AP3: Non_Resident_Withholding_Tax | AQ3: Other_Expenses | AR3: Other_Income | AS3: Other_Net_Foreign_Source_Income | AT3: Accrual_Date | AU3: Tax_Deferred_Amounts | AV3: Tax_Exempt_Amounts | AW3: Tax_Free_Amounts | AX3: AMIT | AY3: Gst_Rate | AZ3: Transaction_ID | BA3: Account_Code | BB3: Contra_Entry | BC3: Contra_Code | BD3: Validation_Formula | BE3: Bsb_Acc_Validation | BN3: Transaction Types
A4: =IF(AND(BD4=TRUE,BE4=TRUE),0,IF(OR(BD4=FALSE,BE4=FALSE),1,"")) -> 0 | B4: Bank Transaction | C4: BGL | D4: 2017-07-01 | E4: -8500 | G4: Bank Transfer | H4: 012012 | I4: 987654321 | T4: =IF(ISBLANK(R4)," ",R4*3/7) ->  | AY4: =IF(O4="Not Applicable","",IF(O4="100 (Full GST Credits)",100,IF(O4="75 (Reduced GST Credits)","75",IF(O4="GST Free","0","")))) ->  | AZ4: =RANDBETWEEN(1,100000000000) -> 61338900174 | BC4: =LEFT(BB4,LEN(BB4)-(LEN(BB4)-5)) ->  | BD4: =IF(B4="Bank Transaction",NOT(OR(ISBLANK(C4),ISBLANK(E4),ISBLANK(D4),AND(I4<>"",K4<>""))),IF(B4="Income Transaction",NOT(OR(ISBLANK(C4),ISBLANK(E4),ISBLANK(D4),ISBLANK(J4),AND(ISBLANK(I4),ISBLANK(K4)),AND(I4<>"",K4<>""))),IF(B4="Investment Transaction",NOT(OR(ISBLANK(C4),ISBLANK(E4),ISBLANK(D4),ISBLANK(J4),ISBLANK(K4),ISBLANK(L4))),""))) -> TRUE | BE4: =IF(AND(H4<>"",ISBLANK(I4)),FALSE,IF(AND(ISBLANK(H4),I4<>""),FALSE,TRUE)) -> TRUE
A5: =IF(AND(BD5=TRUE,BE5=TRUE),0,IF(OR(BD5=FALSE,BE5=FALSE),1,"")) -> 0 | B5: Bank Transaction | C5: BGL | D5: 2017-07-01 | E5: 8500 | G5: Bank Transfer | H5: 062948 | I5: 333333333 | T5: =IF(ISBLANK(R5)," ",R5*3/7) ->  | AZ5: =AZ4+1 -> 61338900175 | BD5: =IF(B5="Bank Transaction",NOT(OR(ISBLANK(C5),ISBLANK(E5),ISBLANK(D5),AND(I5<>"",K5<>""))),IF(B5="Income Transaction",NOT(OR(ISBLANK(C5),ISBLANK(E5),ISBLANK(D5),ISBLANK(J5),AND(ISBLANK(I5),ISBLANK(K5)),AND(I5<>"",K5<>""))),IF(B5="Investment Transaction",NOT(OR(ISBLANK(C5),ISBLANK(E5),ISBLANK(D5),ISBLANK(J5),ISBLANK(K5),ISBLANK(L5))),""))) -> TRUE | BE5: TRUE | BN5: Bank Transaction
A6: 0 | B6: Income Transaction | C6: BGL | D6: 2017-07-03 | E6: -8400 | G6: Macquarie Group Limited - Dividend | J6: Shares in Listed Companies (Australian) | K6: MQG | T6: =IF(ISBLANK(R6)," ",R6*3/7) ->  | AZ6: =AZ5+1 -> 61338900176 | BD6: TRUE | BE6: TRUE | BN6: Income Transaction
A7: 0 | B7: Bank Transaction | C7: BGL | D7: 2017-07-03 | E7: 8400 | G7: Macquarie Group Limited - Dividend | T7: =IF(ISBLANK(R7)," ",R7*3/7) ->  | AZ7: =AZ6+1 -> 61338900177 | BD7: TRUE | BE7: TRUE | BN7: Investment Transaction
A8: 0 | B8: Income Transaction | C8: BGL | D8: 2017-09-26 | E8: -1588.47 | G8: BHP Billiton Limited - Dividend | J8: Shares in Listed Companies (Australian) | K8: BHP | T8: =IF(ISBLANK(R8)," ",R8*3/7) ->  | AZ8: 61338900178 | BD8: TRUE | BE8: TRUE
A9: 0 | B9: Bank Transaction | C9: BGL | D9: 2017-09-26 | E9: 1588.47 | G9: BHP Billiton Limited - Dividend | AZ9: 61338900179 | BD9: TRUE | BE9: TRUE | BN9: Security Type (to help find Control Account)
A10: 0 | B10: Income Transaction | C10: BGL | D10: 2017-10-26 | E10: -1420 | G10: Reece Limited - REH Dividend | J10: Shares in Listed Companies (Australian) | K10: REH | AZ10: 61338900180 | BD10: TRUE | BE10: TRUE
A11: 0 | B11: Bank Transaction | C11: BGL | D11: 2017-10-26 | E11: 1420 | G11: Reece Limited - REH Dividend | AZ11: 61338900181 | BD11: TRUE | BE11: TRUE | BN11: Bank Accounts
A12: 0 | B12: Income Transaction | C12: BGL | D12: 2017-12-13 | E12: -6150 | G12: Macquarie Group Limited - Dividend | J12: Shares in Listed Companies (Australian) | K12: MQG | AZ12: 61338900182 | BD12: TRUE | BE12: TRUE | BN12: Managed Investments (Australian)
A13: 0 | B13: Bank Transaction | C13: BGL | D13: 2017-12-13 | E13: 6150 | G13: Macquarie Group Limited - Dividend | AZ13: 61338900183 | BD13: TRUE | BE13: TRUE | BN13: Shares in Listed Companies (Australian)
A14: 0 | B14: Bank Transaction | C14: BGL | D14: 2018-05-30 | E14: -8463 | G14: Reece Limited Issue Entitlement | AZ14: 61338900184 | BD14: TRUE | BE14: TRUE | BN14: Units in Listed Unit Trusts (Australian)
C15: BGL | AZ15: 61338900185 | BE15: TRUE
C16: BGL | AZ16: 61338900186 | BE16: TRUE | BN16: Bank Accounts
C17: BGL | AZ17: 61338900187 | BE17: TRUE | BN17: Term Deposits
C18: BGL | AZ18: 61338900188 | BE18: TRUE | BN18: Collectables (Coins,Stamps, Wine and Other Personal Use Assets)
C19: BGL | AZ19: 61338900189 | BE19: TRUE | BN19: Cryptocurrency
C20: BGL | AZ20: 61338900190 | BE20: TRUE | BN20: Debt Securities (Bonds, Bills of Exchange, Promissory Notes)
C21: BGL | AZ21: 61338900191 | BE21: TRUE | BN21: Derivatives (Options, Hybrids, Future Contracts)
C22: BGL | AZ22: 61338900192 | BE22: TRUE | BN22: Farming Property
C23: BGL | AZ23: 61338900193 | BE23: TRUE | BN23: Fixed Interest Securities (Australian)
C24: BGL | AZ24: 61338900194 | BE24: TRUE | BN24: Fixed Interest Securities (Overseas)
C25: BGL | AZ25: 61338900195 | BE25: TRUE | BN25: Fixtures and Fittings (at written down value)
C26: BGL | AZ26: 61338900196 | BE26: TRUE | BN26: Government Securities (Australian)
C27: BGL | AZ27: 61338900197 | BE27: TRUE | BN27: Government Securities (Overseas)
C28: BGL | AZ28: 61338900198 | BE28: TRUE | BN28: Hybrid Securities with Debt (Swaps, futures contracts, Options)
C29: BGL | AZ29: 61338900199 | BE29: TRUE | BN29: Interest in Partnerships (Australian)
C30: BGL | AZ30: 61338900200 | BE30: TRUE | BN30: Interest in Partnerships(Overseas)
C31: BGL | AZ31: 61338900201 | BE31: TRUE | BN31: Leased Assets
C32: BGL | AZ32: 61338900202 | BE32: TRUE | BN32: Limited Recourse Borrowing Arrangements
C33: BGL | AZ33: 61338900203 | BE33: TRUE | BN33: Insurance Policies
C34: BGL | AZ34: 61338900204 | BE34: TRUE | BN34: Loans to Associated Entities (In house loans)
C35: BGL | AZ35: 61338900205 | BE35: TRUE | BN35: Managed Investments (Australian)
C36: BGL | AZ36: 61338900206 | BE36: TRUE | BN36: Managed Investments (Overseas)
C37: BGL | AZ37: 61338900207 | BE37: TRUE | BN37: Mortgage Loans (Australian)
C38: BGL | AZ38: 61338900208 | BE38: TRUE | BN38: Mortgage Loans (Overseas)
C39: BGL | AZ39: 61338900209 | BE39: TRUE | BN39: Motor Vehicles (at written down value)
C40: BGL | AZ40: 61338900210 | BE40: TRUE | BN40: Other Assets
C41: BGL | AZ41: 61338900211 | BE41: TRUE | BN41: Other Investments
C42: BGL | AZ42: 61338900212 | BE42: TRUE | BN42: Farming Equipment
C43: BGL | AZ43: 61338900213 | BE43: TRUE | BN43: Plant and Equipment (at written down value)
C44: BGL | AZ44: 61338900214 | BE44: TRUE | BN44: Pooled Superannuation Trust
C45: BGL | AZ45: 61338900215 | BE45: TRUE | BN45: Real Estate Properties (Australian - Residential)
C46: BGL | AZ46: 61338900216 | BE46: TRUE | BN46: Real Estate Properties (Australian - Non Residential)
C47: BGL | AZ47: 61338900217 | BE47: TRUE | BN47: Real Estate Properties (Overseas - Residential)
C48: BGL | AZ48: 61338900218 | BE48: TRUE | BN48: Real Estate Properties (Overseas - Non Residential)
C49: BGL | AZ49: 61338900219 | BE49: TRUE | BN49: Shares in Listed Companies (Australian)
C50: BGL | AZ50: 61338900220 | BE50: TRUE | BN50: Shares in Listed Companies (Overseas)
C51: BGL | AZ51: 61338900221 | BE51: TRUE | BN51: Shares in Unlisted Private Companies (Australian)
C52: BGL | AZ52: 61338900222 | BE52: TRUE | BN52: Shares in Unlisted Private Companies (Overseas)
C53: BGL | AZ53: 61338900223 | BE53: TRUE | BN53: Stapled Securities
C54: BGL | AZ54: 61338900224 | BE54: TRUE | BN54: Units in Listed Unit Trusts (Australian)
C55: BGL | AZ55: 61338900225 | BE55: TRUE | BN55: Units in Listed Unit Trusts (Overseas)
C56: BGL | AZ56: 61338900226 | BE56: TRUE | BN56: Units in Unlisted Unit Trusts (Australian)
C57: BGL | AZ57: 61338900227 | BE57: TRUE | BN57: Units in Unlisted Unit Trusts (Overseas)
C58: BGL | AZ58: 61338900228 | BE58: TRUE
C59: BGL | AZ59: 61338900229 | BE59: TRUE
C60: BGL | AZ60: 61338900230 | BE60: TRUE
C61: BGL | AZ61: 61338900231 | BE61: TRUE
C62: BGL | AZ62: 61338900232 | BE62: TRUE
C63: BGL | AZ63: 61338900233 | BE63: TRUE | BN63: GST Rate
C64: BGL | AZ64: 61338900234 | BE64: TRUE
C65: BGL | AZ65: 61338900235 | BE65: TRUE | BN65: Not Applicable
C66: BGL | AZ66: 61338900236 | BE66: TRUE | BN66: 100 (Full GST Credits)
C67: BGL | AZ67: 61338900237 | BE67: TRUE | BN67: 75 (Reduced GST Credits)
C68: BGL | AY68: =IF(O68="Not Applicable","",IF(O68="100 (Full GST Credits)",100,IF(O68="75 (Reduced GST Credits)","75",IF(O68="GST Free","0","")))) ->  | AZ68: 61338900238 | BC68: =LEFT(BB68,LEN(BB68)-(LEN(BB68)-5)) ->  | BE68: =IF(AND(H68<>"",ISBLANK(I68)),FALSE,IF(AND(ISBLANK(H68),I68<>""),FALSE,TRUE)) -> TRUE | BN68: GST Free
A69: =IF(AND(BD69=TRUE,BE69=TRUE),0,IF(OR(BD69=FALSE,BE69=FALSE),1,"")) ->  | C69: BGL | AZ69: 61338900239 | BD69: =IF(B69="Bank Transaction",NOT(OR(ISBLANK(C69),ISBLANK(E69),ISBLANK(D69),AND(I69<>"",K69<>""))),IF(B69="Income Transaction",NOT(OR(ISBLANK(C69),ISBLANK(E69),ISBLANK(D69),ISBLANK(J69),AND(ISBLANK(I69),ISBLANK(K69)),AND(I69<>"",K69<>""))),IF(B69="Investment Transaction",NOT(OR(ISBLANK(C69),ISBLANK(E69),ISBLANK(D69),ISBLANK(J69),ISBLANK(K69),ISBLANK(L69))),""))) ->  | BE69: TRUE
C70: BGL | AZ70: 61338900240 | BE70: TRUE
C71: BGL | T71: =IF(ISBLANK(R71)," ",R71*3/7) ->  | AZ71: =AZ70+1 -> 61338900241 | BE71: TRUE | BN71: Contra Codes (for auto-matching)
C72: BGL | T72: =IF(ISBLANK(R72)," ",R72*3/7) ->  | AZ72: 61338900242 | BE72: TRUE
C73: BGL | T73: =IF(ISBLANK(R73)," ",R73*3/7) ->  | AZ73: 61338900243 | BE73: TRUE | BN73: 91000 - Matching Rules To Be Applied
C74: BGL | T74: =IF(ISBLANK(R74)," ",R74*3/7) ->  | AZ74: 61338900244 | BE74: TRUE
C75: BGL | AZ75: 61338900245 | BE75: TRUE | BN75: 25000 - Interest Received
C76: BGL | AZ76: 61338900246 | BE76: TRUE | BN76: 25100 - Interest Received ATO General Interest Charge
C77: BGL | AZ77: 61338900247 | BE77: TRUE | BN77: 30100 - Accountancy Fees
C78: BGL | AZ78: 61338900248 | BE78: TRUE | BN78: 30200 - Administration Costs
C79: BGL | AZ79: 61338900249 | BE79: TRUE | BN79: 30400 - ATO Supervisory Levy
C80: BGL | AZ80: 61338900250 | BE80: TRUE | BN80: 30500 - Advertising
C81: BGL | AZ81: 61338900251 | BE81: TRUE | BN81: 30700 - Auditor's Remuneration
C82: BGL | AZ82: 61338900252 | BE82: TRUE | BN82: 30800 - ASIC Fees
C83: BGL | AZ83: 61338900253 | BE83: TRUE | BN83: 30900 - Advisor Fees
C84: BGL | AZ84: 61338900254 | BE84: TRUE | BN84: 31500 - Bank Charges
C85: BGL | AZ85: 61338900255 | BE85: TRUE | BN85: 32800 - Commission
C86: BGL | AZ86: 61338900256 | BE86: TRUE | BN86: 35000 - General Expenses
C87: BGL | AZ87: 61338900257 | BE87: TRUE | BN87: 37700 - Interest Paid - ATO General Interest
C88: BGL | AZ88: 61338900258 | BE88: TRUE | BN88: 37900 - Interest Paid
C89: BGL | AZ89: 61338900259 | BE89: TRUE | BN89: 38000 - Insurance
C90: BGL | AZ90: 61338900260 | BE90: TRUE | BN90: 38200 - Fines
C91: BGL | AZ91: 61338900261 | BE91: TRUE | BN91: 38700 - Legal Fees
C92: BGL | AZ92: 61338900262 | BE92: TRUE | BN92: 39700 - Light and Power - All Properties
C93: BGL | AZ93: 61338900263 | BE93: TRUE | BN93: 41800 - Postage, Printing and Stationery
C94: BGL | AZ94: 61338900264 | BE94: TRUE | BN94: 41910 - Property Expenses - Non Specified
C95: BGL | AZ95: 61338900265 | BE95: TRUE | BN95: 43300 - Salaries and Wages
C96: BGL | AZ96: 61338900266 | BE96: TRUE | BN96: 44700 - Telephone
C97: BGL | AZ97: 61338900267 | BE97: TRUE | BN97: 47500 - Trustee Fees
C98: BGL | AZ98: 61338900268 | BE98: TRUE | BN98: 48500 - Income Tax Expense
C99: BGL | AZ99: 61338900269 | BE99: TRUE | BN99: 48600 - Prior Years Under/Over Provision for Income Tax
C100: BGL | AZ100: 61338900270 | BE100: TRUE | BN100: 48800 - Tax Losses Recouped
C101: BGL | AZ101: 61338900271 | BE101: TRUE | BN101: 48900 - Capital Losses Recouped
C102: BGL | AZ102: 61338900272 | BE102: TRUE | BN102: 49000 - Profit/Loss Allocation Account
C103: BGL | AZ103: 61338900273 | BE103: TRUE | BN103: 49350 - Writeback of FITB/PDIT (Unallocated)
C104: BGL | AZ104: 61338900274 | BE104: TRUE | BN104: 62500 - Dividend Reinvestment - Residual Account
C105: BGL | AZ105: 61338900275 | BE105: TRUE | BN105: 64000 - Formation Expenses
C106: BGL | AZ106: 61338900276 | BE106: TRUE | BN106: 65500 - Other Assets
C107: BGL | AZ107: 61338900277 | BE107: TRUE | BN107: 66000 - Prepaid Expenses
C108: BGL | AZ108: 61338900278 | BE108: TRUE | BN108: 68000 - Sundry Debtors
C109: BGL | AZ109: 61338900279 | BE109: TRUE | BN109: 84000 - GST Payable/Refundable
C110: BGL | AZ110: 61338900280 | BE110: TRUE | BN110: 84500 - Income in Advance
C111: BGL | AZ111: 61338900281 | BE111: TRUE | BN111: 86000 - PAYG Payable
C112: BGL | AZ112: 61338900282 | BE112: TRUE | BN112: 88000 - Sundry Creditors
C113: BGL | AZ113: 61338900283 | BE113: TRUE | BN113: 89000 - Deferred Tax Liability/Asset
C114: BGL | AZ114: 61338900284 | BE114: TRUE | BN114: 91000 - Matching Rules To Be Applied
C115: BGL | AZ115: 61338900285 | BE115: TRUE | BN115: 92000 - Investment Income Data Clearing Account
C116: BGL | AZ116: 61338900286 | BE116: TRUE | BN116: 94910 - Investment Movement Data Clearing Account
C117: BGL | AZ117: 61338900287 | BE117: TRUE | BN117: 94920 - Member Data Clearing Account
C118: BGL | AZ118: 61338900288 | BE118: TRUE | BN118: 94930 - Pension Data Clearing Account
C119: BGL | AZ119: 61338900289 | BE119: TRUE | BN119: 99800 - Unspecified Data Clearing Account
C120: BGL | AZ120: 61338900290 | BE120: TRUE | BN120: 99900 - Manual Suspense Account
C121: BGL | AZ121: 61338900291 | BE121: TRUE
C122: BGL | AZ122: 61338900292 | BE122: TRUE | BN122: Currency
C123: BGL | AZ123: 61338900293 | BE123: TRUE
C124: BGL | AZ124: 61338900294 | BE124: TRUE | BN124: AUD
C125: BGL | AZ125: 61338900295 | BE125: TRUE | BN125: EUR
C126: BGL | AZ126: 61338900296 | BE126: TRUE | BN126: USD
C127: BGL | AZ127: 61338900297 | BE127: TRUE
C128: BGL | AZ128: 61338900298 | BE128: TRUE | BN128: AED
C129: BGL | AZ129: 61338900299 | BE129: TRUE | BN129: CAD
C130: BGL | AZ130: 61338900300 | BE130: TRUE | BN130: CHF
C131: BGL | AZ131: 61338900301 | BE131: TRUE | BN131: CNY
C132: BGL | AY132: =IF(O132="Not Applicable","",IF(O132="100 (Full GST Credits)",100,IF(O132="75 (Reduced GST Credits)","75",IF(O132="GST Free","0","")))) ->  | AZ132: 61338900302 | BC132: =LEFT(BB132,LEN(BB132)-(LEN(BB132)-5)) ->  | BE132: =IF(AND(H132<>"",ISBLANK(I132)),FALSE,IF(AND(ISBLANK(H132),I132<>""),FALSE,TRUE)) -> TRUE | BN132: GBP
A133: =IF(AND(BD133=TRUE,BE133=TRUE),0,IF(OR(BD133=FALSE,BE133=FALSE),1,"")) ->  | C133: BGL | AZ133: 61338900303 | BD133: =IF(B133="Bank Transaction",NOT(OR(ISBLANK(C133),ISBLANK(E133),ISBLANK(D133),AND(I133<>"",K133<>""))),IF(B133="Income Transaction",NOT(OR(ISBLANK(C133),ISBLANK(E133),ISBLANK(D133),ISBLANK(J133),AND(ISBLANK(I133),ISBLANK(K133)),AND(I133<>"",K133<>""))),IF(B133="Investment Transaction",NOT(OR(ISBLANK(C133),ISBLANK(E133),ISBLANK(D133),ISBLANK(J133),ISBLANK(K133),ISBLANK(L133))),""))) ->  | BE133: TRUE | BN133: HKD
C134: BGL | AZ134: 61338900304 | BE134: TRUE | BN134: IDR
C135: BGL | AZ135: =AZ134+1 -> 61338900305 | BE135: TRUE | BN135: INR
C136: BGL | AZ136: 61338900306 | BE136: TRUE | BN136: JPY
C137: BGL | AZ137: 61338900307 | BE137: TRUE | BN137: KRW
C138: BGL | T138: =IF(ISBLANK(R138)," ",R138*3/7) ->  | AZ138: 61338900308 | BE138: TRUE | BN138: MYR
C139: BGL | AZ139: 61338900309 | BE139: TRUE | BN139: NZD
C140: BGL | AZ140: 61338900310 | BE140: TRUE | BN140: PGK
C141: BGL | AZ141: 61338900311 | BE141: TRUE | BN141: PHP
C142: BGL | AZ142: 61338900312 | BE142: TRUE | BN142: SGD
C143: BGL | AZ143: 61338900313 | BE143: TRUE | BN143: THB
C144: BGL | AZ144: 61338900314 | BE144: TRUE | BN144: TWD
C145: BGL | AZ145: 61338900315 | BE145: TRUE | BN145: VND
C146: BGL | AZ146: 61338900316 | BE146: TRUE | BN146: ZAR
C147: BGL | AZ147: 61338900317 | BE147: TRUE
C148: BGL | AZ148: 61338900318 | BE148: TRUE
C149: BGL | AZ149: 61338900319 | BE149: TRUE
C150: BGL | AZ150: 61338900320 | BE150: TRUE
C151: BGL | AZ151: 61338900321 | BE151: TRUE
C152: BGL | AZ152: 61338900322 | BE152: TRUE
C153: BGL | AZ153: 61338900323 | BE153: TRUE
C154: BGL | AZ154: 61338900324 | BE154: TRUE
C155: BGL | AZ155: 61338900325 | BE155: TRUE
C156: BGL | AZ156: 61338900326 | BE156: TRUE
C157: BGL | AZ157: 61338900327 | BE157: TRUE
C158: BGL | AZ158: 61338900328 | BE158: TRUE
C159: BGL | AZ159: 61338900329 | BE159: TRUE
C160: BGL | AZ160: 61338900330 | BE160: TRUE
C161: BGL | AZ161: 61338900331 | BE161: TRUE
C162: BGL | AZ162: 61338900332 | BE162: TRUE
C163: BGL | AZ163: 61338900333 | BE163: TRUE
C164: BGL | AZ164: 61338900334 | BE164: TRUE
C165: BGL | AZ165: 61338900335 | BE165: TRUE
C166: BGL | AZ166: 61338900336 | BE166: TRUE
C167: BGL | AZ167: 61338900337 | BE167: TRUE
C168: BGL | AZ168: 61338900338 | BE168: TRUE
C169: BGL | AZ169: 61338900339 | BE169: TRUE
C170: BGL | AZ170: 61338900340 | BE170: TRUE
C171: BGL | AZ171: 61338900341 | BE171: TRUE
C172: BGL | AZ172: 61338900342 | BE172: TRUE
C173: BGL | AZ173: 61338900343 | BE173: TRUE
C174: BGL | AZ174: 61338900344 | BE174: TRUE
C175: BGL | AZ175: 61338900345 | BE175: TRUE
C176: BGL | AZ176: 61338900346 | BE176: TRUE
C177: BGL | AZ177: 61338900347 | BE177: TRUE
C178: BGL | AZ178: 61338900348 | BE178: TRUE
C179: BGL | AZ179: 61338900349 | BE179: TRUE
C180: BGL | AZ180: 61338900350 | BE180: TRUE
C181: BGL | AZ181: 61338900351 | BE181: TRUE
C182: BGL | AZ182: 61338900352 | BE182: TRUE
C183: BGL | AZ183: 61338900353 | BE183: TRUE
C184: BGL | AZ184: 61338900354 | BE184: TRUE
C185: BGL | AZ185: 61338900355 | BE185: TRUE
C186: BGL | AZ186: 61338900356 | BE186: TRUE
C187: BGL | AZ187: 61338900357 | BE187: TRUE
C188: BGL | AZ188: 61338900358 | BE188: TRUE
C189: BGL | AZ189: 61338900359 | BE189: TRUE
C190: BGL | AZ190: 61338900360 | BE190: TRUE
C191: BGL | AZ191: 61338900361 | BE191: TRUE
C192: BGL | AZ192: 61338900362 | BE192: TRUE
C193: BGL | AZ193: 61338900363 | BE193: TRUE
C194: BGL | AZ194: 61338900364 | BE194: TRUE
C195: BGL | AZ195: 61338900365 | BE195: TRUE
C196: BGL | AY196: =IF(O196="Not Applicable","",IF(O196="100 (Full GST Credits)",100,IF(O196="75 (Reduced GST Credits)","75",IF(O196="GST Free","0","")))) ->  | AZ196: 61338900366 | BC196: =LEFT(BB196,LEN(BB196)-(LEN(BB196)-5)) ->  | BE196: =IF(AND(H196<>"",ISBLANK(I196)),FALSE,IF(AND(ISBLANK(H196),I196<>""),FALSE,TRUE)) -> TRUE
A197: =IF(AND(BD197=TRUE,BE197=TRUE),0,IF(OR(BD197=FALSE,BE197=FALSE),1,"")) ->  | C197: BGL | AZ197: 61338900367 | BD197: =IF(B197="Bank Transaction",NOT(OR(ISBLANK(C197),ISBLANK(E197),ISBLANK(D197),AND(I197<>"",K197<>""))),IF(B197="Income Transaction",NOT(OR(ISBLANK(C197),ISBLANK(E197),ISBLANK(D197),ISBLANK(J197),AND(ISBLANK(I197),ISBLANK(K197)),AND(I197<>"",K197<>""))),IF(B197="Investment Transaction",NOT(OR(ISBLANK(C197),ISBLANK(E197),ISBLANK(D197),ISBLANK(J197),ISBLANK(K197),ISBLANK(L197))),""))) ->  | BE197: TRUE
C198: BGL | AZ198: 61338900368 | BE198: TRUE
C199: BGL | AZ199: =AZ198+1 -> 61338900369 | BE199: TRUE
C200: BGL | AZ200: 61338900370 | BE200: TRUE
... 925 more rows

Sheet Investment_OpeningBal
D1: =IF(SUM(A4:A1040)>0,"Transaction Validation Error","") -> 
A3: Validation | B3: Transaction_Type | C3: Entity_Code | D3: Transaction_Date | E3: Amount | F3: Currency | G3: Description | H3: Security_Type | I3: Security_Code | J3: Quantity | K3: Brokerage | L3: Gst_Amount | M3: Gst_Rate_Detail | N3: Settlement_Date | O3: Contract_Date | P3: Tax_Deferred_Amounts | Q3: AMIT | R3: Net_Notional_Gain | S3: Notional_Gain_Flag | T3: Notional_Gain_Validation_Fail | U3: Gst_Rate | V3: Transaction_ID | W3: Validation_Formula | X3: Notional_Gain_Formula | AD3: Transaction Types
A4: =IF(AND(W4=TRUE,X4=TRUE),0,IF(OR(W4=FALSE,X4=FALSE),1,"")) -> 0 | B4: Investment Transaction | C4: BGL | D4: 2017-06-30 | E4: 1000 | G4: Purchase 1 | H4: Shares in Listed Companies (Australian) | I4: BHP | J4: 1 | O4: 2017-06-30 | R4: 1 | S4: =IF(R4<>"",TRUE,FALSE) -> TRUE | T4: =IF(COUNTIF(X4:X1003,FALSE)>0,TRUE,FALSE) -> FALSE | U4: =IF(M4="Not Applicable","",IF(M4="100 (Full GST Credits)",100,IF(M4="75 (Reduced GST Credits)","75",IF(M4="GST Free","0","")))) ->  | V4: =TODAY()*TODAY()+TRUNC(D4+E4) -> 2046339612 | W4: =IF(B4="Investment Transaction",NOT(OR(E4<0,ISBLANK(C4),ISBLANK(D4),ISBLANK(H4),ISBLANK(I4),ISBLANK(J4))),"") -> TRUE | X4: =IF(AND(R4<>"",O4<>42916),FALSE,IF(AND(R4<>"",D4<>42916),FALSE,TRUE)) -> TRUE
A5: =IF(AND(W5=TRUE,X5=TRUE),0,IF(OR(W5=FALSE,X5=FALSE),1,"")) -> 0 | B5: Investment Transaction | C5: BGL | D5: 2017-06-30 | E5: 2000 | G5: Purchase 2 | H5: Managed Investments (Australian) | I5: AAA0001AU | J5: 2 | O5: 2015-08-01 | P5: 23 | S5: =IF(R5<>"",TRUE,FALSE) -> FALSE | V5: =V4+1 -> 2046339613 | W5: =IF(B5="Investment Transaction",NOT(OR(E5<0,ISBLANK(C5),ISBLANK(D5),ISBLANK(H5),ISBLANK(I5),ISBLANK(J5))),"") -> TRUE | X5: TRUE
A6: 0 | B6: Investment Transaction | C6: BGL | D6: 2017-06-30 | E6: 3000 | G6: Purchase 3 | H6: Shares in Listed Companies (Australian) | I6: MQG | J6: 3 | O6: 2017-06-30 | R6: 3 | S6: TRUE | V6: =V5+1 -> 2046339614 | W6: TRUE | X6: TRUE
A7: 0 | B7: Investment Transaction | C7: BGL | D7: 2017-06-30 | E7: 4000 | G7: Purchase 4 | H7: Managed Investments (Australian) | I7: ZZZ3368AU | J7: 4 | Q7: -100 | S7: FALSE | V7: =V6+1 -> 2046339615 | W7: TRUE | X7: TRUE | AD7: Investment Transaction
C8: BGL | S8: FALSE | V8: 2046339616 | X8: TRUE
C9: BGL | S9: FALSE | V9: 2046339617 | X9: TRUE | AD9: Security Type (to help find Control Account)
C10: BGL | S10: FALSE | V10: 2046339618 | X10: TRUE
C11: BGL | S11: FALSE | V11: 2046339619 | X11: TRUE | AD11: Bank Accounts
C12: BGL | S12: FALSE | V12: 2046339620 | X12: TRUE | AD12: Managed Investments (Australian)
C13: BGL | S13: FALSE | V13: 2046339621 | X13: TRUE | AD13: Shares in Listed Companies (Australian)
C14: BGL | S14: FALSE | V14: 2046339622 | X14: TRUE | AD14: Units in Listed Unit Trusts (Australian)
C15: BGL | S15: FALSE | V15: 2046339623 | X15: TRUE
C16: BGL | S16: FALSE | V16: 2046339624 | X16: TRUE | AD16: Bank Accounts
C17: BGL | S17: FALSE | V17: 2046339625 | X17: TRUE | AD17: Term Deposits
C18: BGL | S18: FALSE | V18: 2046339626 | X18: TRUE | AD18: Collectables (Coins,Stamps, Wine and Other Personal Use Assets)
C19: BGL | S19: FALSE | V19: 2046339627 | X19: TRUE | AD19: Cryptocurrency
C20: BGL | S20: FALSE | V20: 2046339628 | X20: TRUE | AD20: Debt Securities (Bonds, Bills of Exchange, Promissory Notes)
C21: BGL | S21: FALSE | V21: 2046339629 | X21: TRUE | AD21: Derivatives (Options, Hybrids, Future Contracts)
C22: BGL | S22: FALSE | V22: 2046339630 | X22: TRUE | AD22: Farming Property
C23: BGL | S23: FALSE | V23: 2046339631 | X23: TRUE | AD23: Fixed Interest Securities (Australian)
C24: BGL | S24: FALSE | V24: 2046339632 | X24: TRUE | AD24: Fixed Interest Securities (Overseas)
C25: BGL | S25: FALSE | V25: 2046339633 | X25: TRUE | AD25: Fixtures and Fittings (at written down value)
C26: BGL | S26: FALSE | V26: 2046339634 | X26: TRUE | AD26: Government Securities (Australian)
C27: BGL | S27: FALSE | V27: 2046339635 | X27: TRUE | AD27: Government Securities (Overseas)
C28: BGL | S28: FALSE | V28: 2046339636 | X28: TRUE | AD28: Hybrid Securities with Debt (Swaps, futures contracts, Options)
C29: BGL | S29: FALSE | V29: 2046339637 | X29: TRUE | AD29: Interest in Partnerships (Australian)
C30: BGL | S30: FALSE | V30: 2046339638 | X30: TRUE | AD30: Interest in Partnerships(Overseas)
C31: BGL | S31: FALSE | V31: 2046339639 | X31: TRUE | AD31: Leased Assets
C32: BGL | S32: FALSE | V32: 2046339640 | X32: TRUE | AD32: Limited Recourse Borrowing Arrangements
C33: BGL | S33: FALSE | V33: 2046339641 | X33: TRUE | AD33: Insurance Policies
C34: BGL | S34: FALSE | V34: 2046339642 | X34: TRUE | AD34: Loans to Associated Entities (In house loans)
C35: BGL | S35: FALSE | V35: 2046339643 | X35: TRUE | AD35: Managed Investments (Australian)
C36: BGL | S36: FALSE | V36: 2046339644 | X36: TRUE | AD36: Managed Investments (Overseas)
C37: BGL | S37: FALSE | V37: 2046339645 | X37: TRUE | AD37: Mortgage Loans (Australian)
C38: BGL | S38: FALSE | V38: 2046339646 | X38: TRUE | AD38: Mortgage Loans (Overseas)
C39: BGL | S39: FALSE | V39: 2046339647 | X39: TRUE | AD39: Motor Vehicles (at written down value)
C40: BGL | S40: FALSE | V40: 2046339648 | X40: TRUE | AD40: Other Assets
C41: BGL | S41: FALSE | V41: 2046339649 | X41: TRUE | AD41: Other Investments
C42: BGL | S42: FALSE | V42: 2046339650 | X42: TRUE | AD42: Farming Equipment
C43: BGL | S43: FALSE | V43: 2046339651 | X43: TRUE | AD43: Plant and Equipment (at written down value)
C44: BGL | S44: FALSE | V44: 2046339652 | X44: TRUE | AD44: Pooled Superannuation Trust
C45: BGL | S45: FALSE | V45: 2046339653 | X45: TRUE | AD45: Real Estate Properties (Australian - Residential)
C46: BGL | S46: FALSE | V46: 2046339654 | X46: TRUE | AD46: Real Estate Properties (Australian - Non Residential)
C47: BGL | S47: FALSE | V47: 2046339655 | X47: TRUE | AD47: Real Estate Properties (Overseas - Residential)
C48: BGL | S48: FALSE | V48: 2046339656 | X48: TRUE | AD48: Real Estate Properties (Overseas - Non Residential)
C49: BGL | S49: FALSE | V49: 2046339657 | X49: TRUE | AD49: Shares in Listed Companies (Australian)
C50: BGL | S50: FALSE | V50: 2046339658 | X50: TRUE | AD50: Shares in Listed Companies (Overseas)
C51: BGL | S51: FALSE | V51: 2046339659 | X51: TRUE | AD51: Shares in Unlisted Private Companies (Australian)
C52: BGL | S52: FALSE | V52: 2046339660 | X52: TRUE | AD52: Shares in Unlisted Private Companies (Overseas)
C53: BGL | S53: FALSE | V53: 2046339661 | X53: TRUE | AD53: Stapled Securities
C54: BGL | S54: FALSE | V54: 2046339662 | X54: TRUE | AD54: Units in Listed Unit Trusts (Australian)
C55: BGL | S55: FALSE | V55: 2046339663 | X55: TRUE | AD55: Units in Listed Unit Trusts (Overseas)
C56: BGL | S56: FALSE | V56: 2046339664 | X56: TRUE | AD56: Units in Unlisted Unit Trusts (Australian)
C57: BGL | S57: FALSE | V57: 2046339665 | X57: TRUE | AD57: Units in Unlisted Unit Trusts (Overseas)
C58: BGL | S58: FALSE | V58: 2046339666 | X58: TRUE
C59: BGL | S59: FALSE | V59: 2046339667 | X59: TRUE
C60: BGL | S60: FALSE | V60: 2046339668 | X60: TRUE
C61: BGL | S61: FALSE | V61: 2046339669 | X61: TRUE
C62: BGL | S62: FALSE | V62: 2046339670 | X62: TRUE
C63: BGL | S63: FALSE | V63: 2046339671 | X63: TRUE | AD63: GST Rate
C64: BGL | S64: FALSE | V64: 2046339672 | X64: TRUE
C65: BGL | S65: FALSE | V65: 2046339673 | X65: TRUE | AD65: Not Applicable
C66: BGL | S66: FALSE | V66: 2046339674 | X66: TRUE | AD66: 100 (Full GST Credits)
C67: BGL | S67: FALSE | V67: 2046339675 | X67: TRUE | AD67: 75 (Reduced GST Credits)
C68: BGL | S68: FALSE | U68: =IF(M68="Not Applicable","",IF(M68="100 (Full GST Credits)",100,IF(M68="75 (Reduced GST Credits)","75",IF(M68="GST Free","0","")))) ->  | V68: 2046339676 | X68: =IF(AND(R68<>"",O68<>42916),FALSE,IF(AND(R68<>"",D68<>42916),FALSE,TRUE)) -> TRUE | AD68: GST Free
A69: =IF(AND(W69=TRUE,X69=TRUE),0,IF(OR(W69=FALSE,X69=FALSE),1,"")) ->  | C69: BGL | S69: =IF(R69<>"",TRUE,FALSE) -> FALSE | V69: 2046339677 | W69: =IF(B69="Investment Transaction",NOT(OR(E69<0,ISBLANK(C69),ISBLANK(D69),ISBLANK(H69),ISBLANK(I69),ISBLANK(J69))),"") ->  | X69: TRUE
C70: BGL | S70: FALSE | V70: 2046339678 | X70: TRUE
C71: BGL | S71: FALSE | V71: =V70+1 -> 2046339679 | X71: TRUE | AD71: Contra Codes (for auto-matching)
C72: BGL | S72: FALSE | V72: 2046339680 | X72: TRUE
C73: BGL | S73: FALSE | V73: 2046339681 | X73: TRUE | AD73: 91000 - Matching Rules To Be Applied
C74: BGL | S74: FALSE | V74: 2046339682 | X74: TRUE
C75: BGL | S75: FALSE | V75: 2046339683 | X75: TRUE | AD75: 25000 - Interest Received
C76: BGL | S76: FALSE | V76: 2046339684 | X76: TRUE | AD76: 25100 - Interest Received ATO General Interest Charge
C77: BGL | S77: FALSE | V77: 2046339685 | X77: TRUE | AD77: 30100 - Accountancy Fees
C78: BGL | S78: FALSE | V78: 2046339686 | X78: TRUE | AD78: 30200 - Administration Costs
C79: BGL | S79: FALSE | V79: 2046339687 | X79: TRUE | AD79: 30400 - ATO Supervisory Levy
C80: BGL | S80: FALSE | V80: 2046339688 | X80: TRUE | AD80: 30500 - Advertising
C81: BGL | S81: FALSE | V81: 2046339689 | X81: TRUE | AD81: 30700 - Auditor's Remuneration
C82: BGL | S82: FALSE | V82: 2046339690 | X82: TRUE | AD82: 30800 - ASIC Fees
C83: BGL | S83: FALSE | V83: 2046339691 | X83: TRUE | AD83: 30900 - Advisor Fees
C84: BGL | S84: FALSE | V84: 2046339692 | X84: TRUE | AD84: 31500 - Bank Charges
C85: BGL | S85: FALSE | V85: 2046339693 | X85: TRUE | AD85: 32800 - Commission
C86: BGL | S86: FALSE | V86: 2046339694 | X86: TRUE | AD86: 35000 - General Expenses
C87: BGL | S87: FALSE | V87: 2046339695 | X87: TRUE | AD87: 37700 - Interest Paid - ATO General Interest
C88: BGL | S88: FALSE | V88: 2046339696 | X88: TRUE | AD88: 37900 - Interest Paid
C89: BGL | S89: FALSE | V89: 2046339697 | X89: TRUE | AD89: 38000 - Insurance
C90: BGL | S90: FALSE | V90: 2046339698 | X90: TRUE | AD90: 38200 - Fines
C91: BGL | S91: FALSE | V91: 2046339699 | X91: TRUE | AD91: 38700 - Legal Fees
C92: BGL | S92: FALSE | V92: 2046339700 | X92: TRUE | AD92: 39700 - Light and Power - All Properties
C93: BGL | S93: FALSE | V93: 2046339701 | X93: TRUE | AD93: 41800 - Postage, Printing and Stationery
C94: BGL | S94: FALSE | V94: 2046339702 | X94: TRUE | AD94: 41910 - Property Expenses - Non Specified
C95: BGL | S95: FALSE | V95: 2046339703 | X95: TRUE | AD95: 43300 - Salaries and Wages
C96: BGL | S96: FALSE | V96: 2046339704 | X96: TRUE | AD96: 44700 - Telephone
C97: BGL | S97: FALSE | V97: 2046339705 | X97: TRUE | AD97: 47500 - Trustee Fees
C98: BGL | S98: FALSE | V98: 2046339706 | X98: TRUE | AD98: 48500 - Income Tax Expense
C99: BGL | S99: FALSE | V99: 2046339707 | X99: TRUE | AD99: 48600 - Prior Years Under/Over Provision for Income Tax
C100: BGL | S100: FALSE | V100: 2046339708 | X100: TRUE | AD100: 48800 - Tax Losses Recouped
C101: BGL | S101: FALSE | V101: 2046339709 | X101: TRUE | AD101: 48900 - Capital Losses Recouped
C102: BGL | S102: FALSE | V102: 2046339710 | X102: TRUE | AD102: 49000 - Profit/Loss Allocation Account
C103: BGL | S103: FALSE | V103: 2046339711 | X103: TRUE | AD103: 49350 - Writeback of FITB/PDIT (Unallocated)
C104: BGL | S104: FALSE | V104: 2046339712 | X104: TRUE | AD104: 62500 - Dividend Reinvestment - Residual Account
C105: BGL | S105: FALSE | V105: 2046339713 | X105: TRUE | AD105: 64000 - Formation Expenses
C106: BGL | S106: FALSE | V106: 2046339714 | X106: TRUE | AD106: 65500 - Other Assets
C107: BGL | S107: FALSE | V107: 2046339715 | X107: TRUE | AD107: 66000 - Prepaid Expenses
C108: BGL | S108: FALSE | V108: 2046339716 | X108: TRUE | AD108: 68000 - Sundry Debtors
C109: BGL | S109: FALSE | V109: 2046339717 | X109: TRUE | AD109: 84000 - GST Payable/Refundable
C110: BGL | S110: FALSE | V110: 2046339718 | X110: TRUE | AD110: 84500 - Income in Advance
C111: BGL | S111: FALSE | V111: 2046339719 | X111: TRUE | AD111: 86000 - PAYG Payable
C112: BGL | S112: FALSE | V112: 2046339720 | X112: TRUE | AD112: 88000 - Sundry Creditors
C113: BGL | S113: FALSE | V113: 2046339721 | X113: TRUE | AD113: 89000 - Deferred Tax Liability/Asset
C114: BGL | S114: FALSE | V114: 2046339722 | X114: TRUE | AD114: 91000 - Matching Rules To Be Applied
C115: BGL | S115: FALSE | V115: 2046339723 | X115: TRUE | AD115: 92000 - Investment Income Data Clearing Account
C116: BGL | S116: FALSE | V116: 2046339724 | X116: TRUE | AD116: 94910 - Investment Movement Data Clearing Account
C117: BGL | S117: FALSE | V117: 2046339725 | X117: TRUE | AD117: 94920 - Member Data Clearing Account
C118: BGL | S118: FALSE | V118: 2046339726 | X118: TRUE | AD118: 94930 - Pension Data Clearing Account
C119: BGL | S119: FALSE | V119: 2046339727 | X119: TRUE | AD119: 99800 - Unspecified Data Clearing Account
C120: BGL | S120: FALSE | V120: 2046339728 | X120: TRUE | AD120: 99900 - Manual Suspense Account
C121: BGL | S121: FALSE | V121: 2046339729 | X121: TRUE
C122: BGL | S122: FALSE | V122: 2046339730 | X122: TRUE | AD122: Currency
C123: BGL | S123: FALSE | V123: 2046339731 | X123: TRUE
C124: BGL | S124: FALSE | V124: 2046339732 | X124: TRUE | AD124: AUD
C125: BGL | S125: FALSE | V125: 2046339733 | X125: TRUE | AD125: EUR
C126: BGL | S126: FALSE | V126: 2046339734 | X126: TRUE | AD126: USD
C127: BGL | S127: FALSE | V127: 2046339735 | X127: TRUE
C128: BGL | S128: FALSE | V128: 2046339736 | X128: TRUE | AD128: AED
C129: BGL | S129: FALSE | V129: 2046339737 | X129: TRUE | AD129: CAD
C130: BGL | S130: FALSE | V130: 2046339738 | X130: TRUE | AD130: CHF
C131: BGL | S131: FALSE | V131: 2046339739 | X131: TRUE | AD131: CNY
C132: BGL | S132: FALSE | U132: =IF(M132="Not Applicable","",IF(M132="100 (Full GST Credits)",100,IF(M132="75 (Reduced GST Credits)","75",IF(M132="GST Free","0","")))) ->  | V132: 2046339740 | X132: =IF(AND(R132<>"",O132<>42916),FALSE,IF(AND(R132<>"",D132<>42916),FALSE,TRUE)) -> TRUE | AD132: GBP
A133: =IF(AND(W133=TRUE,X133=TRUE),0,IF(OR(W133=FALSE,X133=FALSE),1,"")) ->  | C133: BGL | S133: =IF(R133<>"",TRUE,FALSE) -> FALSE | V133: 2046339741 | W133: =IF(B133="Investment Transaction",NOT(OR(E133<0,ISBLANK(C133),ISBLANK(D133),ISBLANK(H133),ISBLANK(I133),ISBLANK(J133))),"") ->  | X133: TRUE | AD133: HKD
C134: BGL | S134: FALSE | V134: 2046339742 | X134: TRUE | AD134: IDR
C135: BGL | S135: FALSE | V135: =V134+1 -> 2046339743 | X135: TRUE | AD135: INR
C136: BGL | S136: FALSE | V136: 2046339744 | X136: TRUE | AD136: JPY
C137: BGL | S137: FALSE | V137: 2046339745 | X137: TRUE | AD137: KRW
C138: BGL | S138: FALSE | V138: 2046339746 | X138: TRUE | AD138: MYR
C139: BGL | S139: FALSE | V139: 2046339747 | X139: TRUE | AD139: NZD
C140: BGL | S140: FALSE | V140: 2046339748 | X140: TRUE | AD140: PGK
C141: BGL | S141: FALSE | V141: 2046339749 | X141: TRUE | AD141: PHP
C142: BGL | S142: FALSE | V142: 2046339750 | X142: TRUE | AD142: SGD
C143: BGL | S143: FALSE | V143: 2046339751 | X143: TRUE | AD143: THB
C144: BGL | S144: FALSE | V144: 2046339752 | X144: TRUE | AD144: TWD
C145: BGL | S145: FALSE | V145: 2046339753 | X145: TRUE | AD145: VND
C146: BGL | S146: FALSE | V146: 2046339754 | X146: TRUE | AD146: ZAR
C147: BGL | S147: FALSE | V147: 2046339755 | X147: TRUE
C148: BGL | S148: FALSE | V148: 2046339756 | X148: TRUE
C149: BGL | S149: FALSE | V149: 2046339757 | X149: TRUE
C150: BGL | S150: FALSE | V150: 2046339758 | X150: TRUE
C151: BGL | S151: FALSE | V151: 2046339759 | X151: TRUE
C152: BGL | S152: FALSE | V152: 2046339760 | X152: TRUE
C153: BGL | S153: FALSE | V153: 2046339761 | X153: TRUE
C154: BGL | S154: FALSE | V154: 2046339762 | X154: TRUE
C155: BGL | S155: FALSE | V155: 2046339763 | X155: TRUE
C156: BGL | S156: FALSE | V156: 2046339764 | X156: TRUE
C157: BGL | S157: FALSE | V157: 2046339765 | X157: TRUE
C158: BGL | S158: FALSE | V158: 2046339766 | X158: TRUE
C159: BGL | S159: FALSE | V159: 2046339767 | X159: TRUE
C160: BGL | S160: FALSE | V160: 2046339768 | X160: TRUE
C161: BGL | S161: FALSE | V161: 2046339769 | X161: TRUE
C162: BGL | S162: FALSE | V162: 2046339770 | X162: TRUE
C163: BGL | S163: FALSE | V163: 2046339771 | X163: TRUE
C164: BGL | S164: FALSE | V164: 2046339772 | X164: TRUE
C165: BGL | S165: FALSE | V165: 2046339773 | X165: TRUE
C166: BGL | S166: FALSE | V166: 2046339774 | X166: TRUE
C167: BGL | S167: FALSE | V167: 2046339775 | X167: TRUE
C168: BGL | S168: FALSE | V168: 2046339776 | X168: TRUE
C169: BGL | S169: FALSE | V169: 2046339777 | X169: TRUE
C170: BGL | S170: FALSE | V170: 2046339778 | X170: TRUE
C171: BGL | S171: FALSE | V171: 2046339779 | X171: TRUE
C172: BGL | S172: FALSE | V172: 2046339780 | X172: TRUE
C173: BGL | S173: FALSE | V173: 2046339781 | X173: TRUE
C174: BGL | S174: FALSE | V174: 2046339782 | X174: TRUE
C175: BGL | S175: FALSE | V175: 2046339783 | X175: TRUE
C176: BGL | S176: FALSE | V176: 2046339784 | X176: TRUE
C177: BGL | S177: FALSE | V177: 2046339785 | X177: TRUE
C178: BGL | S178: FALSE | V178: 2046339786 | X178: TRUE
C179: BGL | S179: FALSE | V179: 2046339787 | X179: TRUE
C180: BGL | S180: FALSE | V180: 2046339788 | X180: TRUE
C181: BGL | S181: FALSE | V181: 2046339789 | X181: TRUE
C182: BGL | S182: FALSE | V182: 2046339790 | X182: TRUE
C183: BGL | S183: FALSE | V183: 2046339791 | X183: TRUE
C184: BGL | S184: FALSE | V184: 2046339792 | X184: TRUE
C185: BGL | S185: FALSE | V185: 2046339793 | X185: TRUE
C186: BGL | S186: FALSE | V186: 2046339794 | X186: TRUE
C187: BGL | S187: FALSE | V187: 2046339795 | X187: TRUE
C188: BGL | S188: FALSE | V188: 2046339796 | X188: TRUE
C189: BGL | S189: FALSE | V189: 2046339797 | X189: TRUE
C190: BGL | S190: FALSE | V190: 2046339798 | X190: TRUE
C191: BGL | S191: FALSE | V191: 2046339799 | X191: TRUE
C192: BGL | S192: FALSE | V192: 2046339800 | X192: TRUE
C193: BGL | S193: FALSE | V193: 2046339801 | X193: TRUE
C194: BGL | S194: FALSE | V194: 2046339802 | X194: TRUE
C195: BGL | S195: FALSE | V195: 2046339803 | X195: TRUE
C196: BGL | S196: FALSE | U196: =IF(M196="Not Applicable","",IF(M196="100 (Full GST Credits)",100,IF(M196="75 (Reduced GST Credits)","75",IF(M196="GST Free","0","")))) ->  | V196: 2046339804 | X196: =IF(AND(R196<>"",O196<>42916),FALSE,IF(AND(R196<>"",D196<>42916),FALSE,TRUE)) -> TRUE
A197: =IF(AND(W197=TRUE,X197=TRUE),0,IF(OR(W197=FALSE,X197=FALSE),1,"")) ->  | C197: BGL | S197: =IF(R197<>"",TRUE,FALSE) -> FALSE | V197: 2046339805 | W197: =IF(B197="Investment Transaction",NOT(OR(E197<0,ISBLANK(C197),ISBLANK(D197),ISBLANK(H197),ISBLANK(I197),ISBLANK(J197))),"") ->  | X197: TRUE
C198: BGL | S198: FALSE | V198: 2046339806 | X198: TRUE
C199: BGL | S199: FALSE | V199: =V198+1 -> 2046339807 | X199: TRUE
C200: BGL | S200: FALSE | V200: 2046339808 | X200: TRUE
C201: BGL | S201: FALSE | V201: 2046339809 | X201: TRUE
... 802 more rows

Sheet Info
A1: INSTRUCTIONS FOR USING SPREADSHEET Version 1.1
A2: The spreadsheet is designed to enter data into in order to create an XML file which can be imported into Simple Fund 360
A4: 1. | B4: It is recommended that you copy this spreadsheet before you start so that you can save a copy for each fund.
A6: 2. | B6: On the Transaction_File tab, clear all sample data by clicking the 'Clear all transaction data' button.
B7: The Transactions which appear here when you first open the spreadsheet are there as an example.
A9: 3. | B9: (i) Enter one transaction per line
B10: (ii)The following Transaction Types have the following Mandatory fields. These fields must be completed in order for the tarnsaction to upload successfully.
B12: Bank Transaction | C12: Income Transaction | D12: Investment Transaction
B13: Transaction Date | C13: Transaction Date | D13: Transaction Date
B14: Amount | C14: Amount | D14: Amount
C15: Security Type | D15: Quantity
C16: Security Code | D16: Security Type
C17: OR | D17: Security Code
C18: BSB/AccountNum
A22: 4. | B22: Once all data has been entered click on the button 'Create Transaction File'
A26: 5. | B26: Click <Yes>
A27: 6. | B27: Select the location to save the file (do not select Desktop)
A28: 7. | B28: Enter the name you wish to have for the XML file. Then click <OK>
B29: This will be default save the file to your C drive. If you wish to save the file to a direct path please enter this full path with the file name.
B30: Eg. If I wanted to export a file called 'excelexportfile' to by data in folder I could enter, C:\sfund\datain\excelexportfile
A31: 8. | B31: Enter the data range for the data entered. Then click <OK>
B32: The data range will be selected by default based on the data entered.
A33: 9. | B33: The file will be then be saved.
B39: WARNING
B40: The function 'Convert to XML' uses macros, therefore Macros will need to be enabled.
B42: EXCEL 2007
B44: 1. Click the Microsoft Office Button | D44: and then click Excel Options.
B45: 2. Click Trust Center, click Trust Center Settings, and then click Macro Settings.
B46: 3. Macro Settings must be set to something other than Disable All Macros Without Notification.
B47: 4. Restart Excel
B48: 5. Then each time you open a workbook, in the Security Warning bar (that appears just below the ribbon menu - as illustrated in the picture),
B49: select Options button > Enable this content
B55: OFFICE 2000-2003
B56: 1. Each time you open a workbook, in the pop-up dialog box, you must click the button to Enable Macros

Sheet Validations (hidden)
C4: Contra Codes (for auto-matching) | D4: Security Type (to help find Control Account) | E4: GST Rate | F4: Transaction Types
C6: 91000 - Matching Rules To Be Applied | D6: Bank Accounts | E6: Not Applicable | F6: Bank Transaction | G6: Asset Puchase
D7: Term Deposits | E7: 100 (Full GST Credits) | F7: Income Transaction | G7: Asset Instalment Payment
C8: 25000 - Interest Received | D8: Collectables (Coins,Stamps, Wine and Other Personal Use Assets) | E8: 75 (Reduced GST Credits) | F8: Investment Transaction | G8: Asset Income
C9: 25100 - Interest Received ATO General Interest Charge | D9: Debt Securities (Bonds, Bills of Exchange, Promissory Notes) | E9: GST Free | G9: Other Transaction
C10: 30100 - Accountancy Fees | D10: Derivatives (Options, Hybrids, Future Contracts)
C11: 30200 - Administration Costs | D11: Farming Property
C12: 30400 - ATO Supervisory Levy | D12: Fixed Interest Securities (Australian)
C13: 30500 - Advertising | D13: Fixed Interest Securities (Overseas)
C14: 30700 - Auditor's Remuneration | D14: Fixtures and Fittings (at written down value)
C15: 30800 - ASIC Fees | D15: Government Securities (Australian)
C16: 30900 - Advisor Fees | D16: Government Securities (Overseas)
C17: 31500 - Bank Charges | D17: Hybrid Securities with Debt (Swaps, futures contracts, Options)
C18: 32800 - Commission | D18: Interest in Partnerships (Australian)
C19: 35000 - General Expenses | D19: Interest in Partnerships(Overseas)
C20: 37700 - Interest Paid - ATO General Interest | D20: Leased Assets
C21: 37900 - Interest Paid | D21: Limited Recourse Borrowing Arrangements
C22: 38000 - Insurance | D22: Insurance Policies
C23: 38200 - Fines | D23: Loans to Associated Entities (In house loans)
C24: 38700 - Legal Fees | D24: Managed Investments (Australian)
C25: 39700 - Light and Power - All Properties | D25: Managed Investments (Overseas)
C26: 41800 - Postage, Printing and Stationery | D26: Mortgage Loans (Australian)
C27: 41910 - Property Expenses - Non Specified | D27: Mortgage Loans (Overseas)
C28: 43300 - Salaries and Wages | D28: Motor Vehicles (at written down value)
C29: 44700 - Telephone | D29: Other Assets
C30: 47500 - Trustee Fees | D30: Other Investments
C31: 48500 - Income Tax Expense | D31: Farming Equipment
C32: 48600 - Prior Years Under/Over Provision for Income Tax | D32: Plant and Equipment (at written down value)
C33: 48800 - Tax Losses Recouped | D33: Pooled Superannuation Trust
C34: 48900 - Capital Losses Recouped | D34: Real Estate Properties (Australian - Residential)
C35: 49000 - Profit/Loss Allocation Account | D35: Real Estate Properties (Australian - Non Residential)
C36: 49350 - Writeback of FITB/PDIT (Unallocated) | D36: Real Estate Properties (Overseas - Residential)
C37: 62500 - Dividend Reinvestment - Residual Account | D37: Real Estate Properties (Overseas - Non Residential)
C38: 64000 - Formation Expenses | D38: Shares in Listed Companies (Australian)
C39: 65500 - Other Assets | D39: Shares in Listed Companies (Overseas)
C40: 66000 - Prepaid Expenses | D40: Shares in Unlisted Private Companies (Australian)
C41: 68000 - Sundry Debtors | D41: Shares in Unlisted Private Companies (Overseas)
C42: 84000 - GST Payable/Refundable | D42: Stapled Securities
C43: 84500 - Income in Advance | D43: Units in Listed Unit Trusts (Australian)
C44: 86000 - PAYG Payable | D44: Units in Listed Unit Trusts (Overseas)
C45: 88000 - Sundry Creditors | D45: Units in Unlisted Unit Trusts (Australian)
C46: 89000 - Deferred Tax Liability/Asset | D46: Units in Unlisted Unit Trusts (Overseas)
C47: 91000 - Matching Rules To Be Applied
C48: 92000 - Investment Income Data Clearing Account
C49: 94910 - Investment Movement Data Clearing Account
C50: 94920 - Member Data Clearing Account
C51: 94930 - Pension Data Clearing Account
C52: 99800 - Unspecified Data Clearing Account
C53: 99900 - Manual Suspense Account
